bitfinex-derivatives/quotes_ETHF0:USTF0_20250501
["timestamp","ask_amount","ask_price","bid_price","bid_amount"]
[1746096397794,11.59075336,1836.5,1836.4,1.08892]
[1746096397994,1.08892,1836.4,1836.3,44.42892]
[1746096398194,11.59081336,1836.4,1836.3,44.42892]
[1746096398394,13.97851336,1836.4,1836.3,44.42892]
[1746096398600,4.29671,1836.5,1836.4,1.08892]
[1746096398897,14.79860336,1836.5,1836.4,1.08892]
[1746096399204,14.79860336,1836.5,1836.4,3.62892]
[1746096400399,14.79860336,1836.5,1836.4,2.54]
[1746096400793,1.08892,1836.4,1836.3,41.88895]
[1746096400993,14.17111336,1836.4,1836.3,41.88895]
[1746096401601,16.64721336,1836.4,1836.3,40.8]
[1746096401898,1.08898,1836.3,1836.2,7.2814]
[1746096402087,14.17117336,1836.3,1836.2,4.9327]
[1746096402291,1.0891,1836.1,1836.0,3.62806]
[1746096402488,11.59099336,1836.1,1836.0,44.42806]
[1746096402696,1.0891,1836.1,1836.0,46.97556]
[1746096403302,11.59099336,1836.1,1836.0,46.97556]
[1746096403900,11.59099336,1836.1,1836.0,6.17556]
[1746096404203,10.50189336,1836.1,1836.0,6.17556]
[1746096404402,11.59099336,1836.1,1836.0,46.97556]
[1746096404697,1.0891,1836.1,1836.0,45.8864]
[1746096404901,11.59099336,1836.1,1836.0,45.8864]
[1746096405597,11.59099336,1836.1,1835.9,4.29697]
[1746096405598,10.50189336,1836.1,1835.7,3.2078]
[1746096405797,1.08926,1835.9,1835.8,1.08927]
[1746096405995,10.50189336,1836.1,1835.8,2.4754]
[1746096406200,1.0891,1836.1,1836.0,1.08907]
[1746096407004,1.08916,1836.0,1835.9,44.24907]
[1746096407305,11.59105336,1836.0,1835.9,44.24907]
[1746096407601,1.08916,1836.0,1835.9,44.24907]
[1746096408601,5.7736,1836.3,1835.9,45.88294]
[1746096408804,14.79868336,1836.3,1836.2,1.08904]
[1746096409307,11.59088336,1836.3,1836.2,1.08904]
[1746096409801,1.08904,1836.2,1836.1,3.60565]
[1746096410606,1.08901,1836.3,1836.2,1.08898]
[1746096410804,11.59090336,1836.3,1836.2,1.08898]
[1746096411106,11.59089336,1836.3,1836.2,1.08904]
[1746096412905,10.50189336,1836.3,1836.2,1.08904]
[1746096413401,11.59087336,1836.3,1836.2,1.08904]
[1746096413705,10.50189336,1836.3,1836.2,1.08904]
[1746096413905,11.59087336,1836.3,1836.2,1.08904]
[1746096414205,10.50189336,1836.3,1836.2,1.08904]
[1746096414506,3.2078,1836.5,1836.4,1.08892]
[1746096414711,4.29666,1836.5,1836.4,1.08892]
[1746096414900,13.70969336,1836.5,1836.4,1.08892]
[1746096415202,1.08892,1836.4,1836.3,2.397]
[1746096415503,11.59081336,1836.4,1836.3,1.08895]
[1746096415694,14.08911336,1836.4,1836.3,1.08895]
[1746096416306,14.08915336,1836.4,1836.2,2.4146]
[1746096416606,3.58726,1836.4,1836.3,1.08898]
[1746096417000,14.08915336,1836.4,1836.3,1.08898]
[1746096417199,14.08915336,1836.4,1836.2,3.5036]
[1746096417200,1.08898,1836.3,1836.2,3.5036]
[1746096417402,1.08904,1836.2,1836.1,3.48604]
[1746096417607,11.59093336,1836.2,1836.1,3.48604]
[1746096419107,14.15203336,1836.2,1836.1,3.48604]
[1746096420199,11.59093336,1836.2,1836.1,3.48604]
[1746096420399,11.59093336,1836.2,1836.1,5.92834]
[1746096421608,5.09967,1836.5,1836.1,5.92834]
[1746096421609,8.30747,1836.5,1836.1,4.8393]
[1746096421802,10.50189336,1836.3,1836.2,3.53134]
[1746096422004,11.59087336,1836.3,1836.2,3.53134]
[1746096423909,11.59087336,1836.3,1836.2,2.4423]
[1746096424212,11.59087336,1836.3,1836.2,3.53134]
[1746096426409,10.50189336,1836.3,1836.2,3.53134]
[1746096426607,6.67421,1836.5,1836.4,1.08892]
[1746096427015,17.17610336,1836.5,1836.4,1.08892]
[1746096427208,17.17610336,1836.5,1836.4,3.59052]
[1746096427814,14.79860336,1836.5,1836.4,3.59052]
[1746096428408,13.70969336,1836.5,1836.4,3.59052]
[1746096428605,4.137,1837.1,1836.5,2.72216]
[1746096428808,4.137,1837.1,1836.6,5.9265]
[1746096428809,10.50189336,1836.7,1836.6,5.9265]
[1746096429108,11.59063336,1836.7,1836.6,5.936]
[1746096429314,1.08872,1836.8,1836.7,1.08874]
[1746096429513,11.59061336,1836.8,1836.7,1.08874]
[1746096429716,1.08874,1836.7,1836.6,1.08875]
[1746096429915,14.10573336,1836.7,1836.6,1.08875]
[1746096433518,16.44923336,1836.7,1836.6,1.08875]
[1746096436920,1.08886,1836.6,1836.5,1.08881]
[1746096437222,13.00149336,1836.6,1836.5,1.08881]
[1746096437424,3.43225,1836.7,1836.6,1.0888]
[1746096437616,11.59075336,1836.6,1836.5,1.08881]
[1746096438025,1.08891,1836.5,1836.4,1.08887]
[1746096438226,19.78250336,1836.5,1836.4,1.08887]
[1746096438724,1.08896,1836.4,1836.3,1.08893]
[1746096438917,6.13266,1836.4,1836.3,1.08893]
[1746096439114,16.63455336,1836.4,1836.3,1.08893]
[1746096439319,1.08904,1836.3,1836.2,1.08901]
[1746096439525,10.50189336,1836.3,1836.2,1.08904]
[1746096439825,6.13266,1836.4,1836.3,1.08898]
[1746096440028,16.63455336,1836.4,1836.3,1.08898]
[1746096441826,14.16915336,1836.4,1836.3,1.08898]
[1746096442627,3.66726,1836.4,1836.3,1.08898]
[1746096442928,14.16915336,1836.4,1836.3,1.08898]
[1746096443527,11.59085336,1836.4,1836.3,1.08898]
[1746096443929,8.43359,1836.7,1836.4,1.08892]
[1746096444226,14.79848336,1836.7,1836.6,1.0888]
[1746096444619,14.79848336,1836.7,1836.6,3.6496]
[1746096445829,11.59068336,1836.7,1836.6,3.6496]
[1746096446028,14.10758336,1836.7,1836.6,3.6496]
[1746096447723,1.08891,1836.5,1836.4,1.08885]
[1746096448028,11.59080336,1836.5,1836.4,3.41915]
[1746096448325,1.08891,1836.5,1836.4,3.41915]
[1746096449623,2.3361,1836.5,1836.4,3.41915]
[1746096450123,12.83799336,1836.5,1836.4,3.41915]
[1746096450329,13.92685336,1836.5,1836.4,1.08885]
[1746096450918,13.92685336,1836.5,1836.4,3.48085]
[1746096451136,13.92685336,1836.5,1836.4,1.08885]
[1746096453525,12.83799336,1836.5,1836.4,1.08885]
[1746096453830,13.92685336,1836.5,1836.4,3.56755]
[1746096455627,13.92685336,1836.5,1836.4,2.4787]
[1746096455822,1.08892,1836.4,1836.3,1.08893]
[1746096456027,15.41509336,1836.4,1836.3,1.08893]
[1746096456228,1.08891,1836.5,1836.4,1.08892]
[1746096456831,2.36,1836.6,1836.5,1.08886]
[1746096457126,13.95069336,1836.6,1836.5,1.08886]
[1746096457431,3.42946,1836.7,1836.6,1.0888]
[1746096457628,13.93135336,1836.7,1836.6,1.0888]
[1746096458030,13.93135336,1836.7,1836.6,3.4388]
[1746096460331,1.08884,1836.6,1836.5,1.0888]
[1746096460532,14.10123336,1836.6,1836.5,1.0888]
[1746096461433,1.08886,1836.5,1836.4,1.08889]
[1746096461636,18.70665336,1836.5,1836.4,1.08889]
[1746096463439,21.91445336,1836.5,1836.4,1.08889]
[1746096466248,26.27010336,1836.5,1836.1,2.72271]
[1746096466450,11.59091336,1836.3,1836.2,1.08898]
[1746096466945,10.50189336,1836.3,1836.2,1.08898]
[1746096467249,11.59087336,1836.3,1836.2,3.54628]
[1746096467450,1.0891,1836.1,1836.0,1.08912]
[1746096467654,11.59099336,1836.1,1836.0,1.08912]
[1746096467841,11.59099336,1836.1,1835.8,40.8]
[1746096467842,13.70969336,1836.1,1835.8,40.8]
[1746096468147,10.50189336,1836.1,1836.0,1.08916]
[1746096468449,6.22288,1836.2,1836.1,1.0891]
[1746096468850,16.72477336,1836.2,1836.1,1.0891]
[1746096469943,3.2078,1836.3,1836.2,1.08904]
[1746096470451,4.29678,1836.3,1836.2,1.08904]
[1746096470747,4.29678,1836.3,1836.2,3.58914]
[1746096470949,4.29663,1836.6,1836.3,2.7224]
[1746096471153,10.50189336,1836.4,1836.3,5.90548]
[1746096471648,8.39747,1836.5,1836.4,1.08892]
[1746096472148,8.39747,1836.5,1836.3,4.8165]
[1746096472149,1.08892,1836.4,1836.3,1.08894]
[1746096472347,14.06241336,1836.4,1836.3,1.08894]
[1746096472949,17.27021336,1836.4,1836.3,1.08894]
[1746096476145,1.08904,1836.3,1836.2,1.08901]
[1746096476351,3.48714,1836.3,1836.2,1.08901]
[1746096476545,13.98903336,1836.3,1836.2,1.08901]
[1746096477044,4.29675,1836.4,1836.3,1.08898]
[1746096477247,6.74765,1836.4,1836.3,1.08898]
[1746096477448,17.24954336,1836.4,1836.3,3.54178]
[1746096477945,1.08898,1836.3,1836.2,6.10909]
[1746096478145,14.04177336,1836.3,1836.2,1.08899]
[1746096478345,1.08904,1836.2,1836.1,3.54185]
[1746096478548,18.87243336,1836.2,1836.1,3.54185]
[1746096480256,17.78339336,1836.2,1836.1,3.54185]
[1746096480556,10.50189336,1836.2,1836.1,3.54185]
[1746096480761,1.08904,1836.3,1836.2,1.08904]
[1746096480964,3.47574,1836.3,1836.2,3.45754]
[1746096481260,10.50189336,1836.3,1836.2,3.45754]
[1746096482146,1.08895,1836.4,1836.3,1.08898]
[1746096482350,11.59084336,1836.4,1836.3,3.45748]
[1746096483152,11.59084336,1836.4,1836.3,2.3685]
[1746096483359,1.08904,1836.3,1836.2,1.089]
[1746096483657,13.96373336,1836.3,1836.2,1.089]
[1746096484858,12.87469336,1836.3,1836.2,1.089]
[1746096485656,8.9786,1836.5,1836.4,1.08892]
[1746096485657,2.3837,1836.5,1836.4,1.08892]
[1746096485859,6.00184,1836.7,1836.6,1.0888]
[1746096486252,1.0888,1836.6,1836.5,3.6007]
[1746096486447,14.13849336,1836.6,1836.5,3.6007]
[1746096487248,3.62907,1836.7,1836.6,1.0888]
[1746096487452,3.62907,1836.7,1836.6,8.5061]
[1746096487747,16.67876336,1836.7,1836.6,8.5061]
[1746096487947,5.7863,1836.8,1836.6,7.4173]
[1746096487948,6.87502,1836.8,1836.6,7.4173]
[1746096488155,6.87502,1836.8,1836.7,3.60064]
[1746096488560,17.37691336,1836.8,1836.7,3.60064]
[1746096488762,17.37691336,1836.8,1836.7,2.5119]
[1746096488960,1.08874,1836.7,1836.6,5.99415]
[1746096489258,16.43813336,1836.7,1836.6,5.99415]
[1746096492969,16.43813336,1836.7,1836.6,3.48545]
[1746096493266,16.43813336,1836.7,1836.6,1.08875]
[1746096494570,16.43813336,1836.7,1836.6,3.47385]
[1746096497663,10.50189336,1836.7,1836.6,3.47385]
[1746096497965,6.87498,1836.8,1836.7,1.08874]
[1746096498165,11.59069336,1836.7,1836.6,1.08875]
[1746096498367,16.42129336,1836.7,1836.6,1.08875]
[1746096499468,1.08886,1836.6,1836.5,1.08881]
[1746096499669,3.42366,1836.6,1836.5,1.08881]
[1746096499869,13.92555336,1836.6,1836.5,1.08881]
[1746096500967,1.08886,1836.5,1836.4,1.08886]
[1746096501173,15.37689336,1836.5,1836.4,1.08886]
[1746096501470,4.875,1836.5,1836.4,3.48626]
[1746096501773,5.92963,1836.8,1836.6,1.08875]
[1746096502070,1.0888,1836.7,1836.6,1.08875]
[1746096502269,13.94999336,1836.7,1836.6,1.08875]
[1746096502567,10.50189336,1836.7,1836.6,1.08875]
[1746096502872,3.2078,1836.8,1836.7,1.08874]
[1746096503169,3.2078,1836.8,1836.7,3.48614]
[1746096503371,12.49312,1836.9,1836.8,1.08868]
[1746096503571,12.49312,1836.9,1836.8,3.48608]
[1746096503774,22.99501336,1836.9,1836.8,3.48608]
[1746096507076,22.99501336,1836.9,1836.8,1.08868]
[1746096507374,18.91301336,1836.9,1836.8,1.08868]
[1746096507676,2.3844,1837.0,1836.9,1.08862]
[1746096508265,2.3844,1837.0,1836.9,5.93192]
[1746096508466,67.226,1837.4,1836.9,5.93192]
[1746096508467,4.29615,1837.4,1837.1,1.0885]
[1746096508675,10.50189336,1837.3,1837.2,3.57684]
[1746096508875,10.50189336,1837.3,1837.2,46.87514]
[1746096509178,11.442,1837.5,1837.4,1.08833]
[1746096509379,10.00737,1837.5,1837.4,1.08833]
[1746096509673,17.88789336,1837.5,1837.4,1.08833]
[1746096510067,12.98059336,1837.5,1837.4,3.58663]
[1746096510565,5.98689,1837.7,1837.6,1.08821]
[1746096510566,4.8987,1837.7,1837.6,1.08821]
[1746096510771,7.2624,1837.7,1837.6,1.08821]
[1746096510967,10.50189336,1837.7,1837.6,1.08821]
[1746096511175,10.50189336,1837.7,1837.6,3.66311]
[1746096511378,10.50189336,1837.7,1837.6,1.08821]
[1746096511574,12.95169336,1837.7,1837.6,1.08821]
[1746096511776,14.03984336,1837.7,1837.6,1.08821]
[1746096511970,12.95169336,1837.7,1837.6,3.66311]
[1746096512470,3.2078,1837.8,1837.7,1.08815]
[1746096512667,14.79778336,1837.8,1837.7,3.66305]
[1746096512871,14.79778336,1837.8,1837.6,1.08818]
[1746096513066,3.53795,1837.7,1837.6,1.08818]
[1746096513271,14.03984336,1837.7,1837.6,1.08818]
[1746096513478,12.95169336,1837.7,1837.6,1.08818]
[1746096513773,3.2078,1837.8,1837.7,1.08815]
[1746096513981,7.50777,1837.9,1837.8,1.08809]
[1746096514175,7.50777,1837.9,1837.8,3.49199]
[1746096514375,18.00966336,1837.9,1837.8,3.49199]
[1746096514678,2.72023,1837.8,1837.2,3.60699762]
[1746096514875,11.59028336,1837.3,1837.2,0.39919762]
[1746096515079,17.27793336,1837.3,1836.7,4.8455]
[1746096515376,17.71279336,1837.2,1836.8,2.4039]
[1746096515681,15.64531336,1837.3,1837.1,1.08845]
[1746096515980,10.50189336,1837.2,1837.0,1.08851]
[1746096516182,14.06257336,1837.2,1837.0,2.4039]
[1746096516582,12.97409336,1837.2,1837.1,1.0885]
[1746096517180,5.14341,1837.3,1837.2,1.08844]
[1746096517381,10.50189336,1837.2,1837.1,3.52496]
[1746096517582,11.59033336,1837.2,1837.1,3.52496]
[1746096517881,14.07263336,1837.2,1837.1,2.5328]
[1746096518683,14.07263336,1837.2,1837.1,3.6213]
[1746096519179,14.07263336,1837.2,1837.1,2.5328]
[1746096519979,1.0885,1837.1,1837.0,1.08853]
[1746096520181,16.58869336,1837.1,1837.0,1.08853]
[1746096520770,15.50019336,1837.1,1837.0,1.08853]
[1746096520973,15.50019336,1837.1,1837.0,3.48993]
[1746096520974,4.9983,1837.1,1837.0,3.48993]
[1746096521179,4.9983,1837.3,1837.0,3.48993]
[1746096521380,13.70969336,1837.2,1837.0,3.48993]
[1746096521581,2.5486,1837.1,1837.0,3.48993]
[1746096521784,13.05049336,1837.1,1836.8,2.3544]
[1746096521981,16.53410336,1837.0,1836.8,5.84445]
[1746096522178,3.63722,1836.9,1836.8,5.84445]
[1746096522482,14.13911336,1836.9,1836.7,3.58782]
[1746096522780,13.95837336,1836.8,1836.7,2.3951]
[1746096522976,13.95839336,1836.8,1836.7,1.08874]
[1746096523280,13.95839336,1836.8,1836.6,44.28387]
[1746096523683,2.3678,1836.7,1836.6,44.28387]
[1746096523880,2.3678,1836.7,1836.6,3.48387]
[1746096524879,8.1514,1837.0,1836.7,1.08872]
[1746096525085,1.08868,1836.8,1836.7,2.3951]
[1746096525285,11.59057336,1836.8,1836.7,2.3951]
[1746096525483,11.59057336,1836.8,1836.7,3.48384]
[1746096526287,11.59057336,1836.8,1836.7,2.3951]
[1746096526887,11.59057336,1836.8,1836.7,3.48384]
[1746096527075,11.59057336,1836.8,1836.7,2.3951]
[1746096528088,10.50189336,1836.8,1836.7,3.48384]
[1746096528295,11.59057336,1836.8,1836.7,3.48384]
[1746096528588,14.06937336,1836.8,1836.7,3.48384]
[1746096528787,12.98069336,1836.8,1836.7,3.48384]
[1746096529089,14.06937336,1836.8,1836.7,3.48384]
[1746096529489,9.23997,1837.0,1836.9,1.08862]
[1746096529790,19.74185336,1837.0,1836.9,1.08862]
[1746096530089,15.44549336,1837.0,1836.9,1.08862]
[1746096530282,10.50189336,1837.0,1836.9,3.58662]
[1746096530486,2.437,1837.1,1837.0,1.08856]
[1746096530691,14.02739336,1837.1,1837.0,3.58656]
[1746096531591,12.93889336,1837.1,1836.8,5.19347]
[1746096531789,12.93889336,1837.1,1836.9,1.08862]
[1746096531790,12.93889336,1837.0,1836.9,1.08862]
[1746096531989,12.93889336,1837.0,1836.9,3.56482]
[1746096532186,10.83409,1837.3,1837.0,1.08852]
[1746096532393,11.59044336,1837.1,1837.0,3.56472]
[1746096532794,1.08855,1837.1,1837.0,3.56472]
[1746096533291,11.59044336,1837.1,1837.0,3.56472]
[1746096534692,2.4144,1837.2,1837.0,3.56472]
[1746096534991,3.50284,1837.2,1837.1,3.5479]
[1746096535387,14.00473336,1837.2,1837.1,3.5479]
[1746096535694,14.00473336,1837.2,1837.1,2.4594]
[1746096535889,14.00473336,1837.2,1837.1,3.5479]
[1746096536192,14.00473336,1837.2,1837.1,2.4594]
[1746096536393,14.00473336,1837.2,1837.1,3.5479]
[1746096536587,1.08856,1837.1,1837.0,1.08851]
[1746096536781,12.80919336,1837.1,1837.0,3.54791]
[1746096536987,2.3073,1837.1,1837.0,3.54791]
[1746096537195,3.3958,1837.1,1837.0,3.54791]
[1746096538200,13.89769336,1837.1,1837.0,3.54791]
[1746096538401,13.89769336,1837.1,1837.0,1.08851]
[1746096540095,17.10549336,1837.1,1837.0,1.08851]
[1746096540297,1.08856,1837.0,1836.9,3.57907]
[1746096540597,16.63685336,1837.0,1836.9,1.08857]
[1746096541094,16.63685336,1837.0,1836.9,3.51277]
[1746096541606,15.54829336,1837.0,1836.9,3.51277]
[1746096541792,16.63685336,1837.0,1836.9,3.51277]
[1746096541993,15.54829336,1837.0,1836.9,3.51277]
[1746096542500,16.63685336,1837.0,1836.9,3.51277]
[1746096542698,15.54829336,1837.0,1836.9,3.51277]
[1746096542899,16.63685336,1837.0,1836.9,3.51277]
[1746096543501,1.08854,1837.1,1837.0,1.08849]
[1746096543690,1.08854,1837.1,1837.0,3.51269]
[1746096544000,4.29609,1837.5,1837.4,1.08824]
[1746096544293,3.2078,1837.5,1837.4,1.08824]
[1746096544497,14.79796336,1837.5,1837.4,1.08824]
[1746096544905,17.27416336,1837.5,1837.4,1.08824]
[1746096545995,6.77227,1837.5,1837.4,1.08824]
[1746096546401,3.56447,1837.5,1837.4,1.08824]
[1746096546598,5.83375,1837.6,1837.5,1.08827]
[1746096546899,11.59016336,1837.5,1837.4,3.54668]
[1746096547102,14.01736336,1837.5,1837.4,1.08828]
[1746096547501,14.01736336,1837.5,1837.3,2.3357]
[1746096547502,1.08833,1837.4,1837.3,3.42405]
[1746096547700,14.01742336,1837.4,1837.3,1.08835]
[1746096547896,1.08839,1837.3,1837.2,4.29623]
[1746096548103,16.37628336,1837.3,1837.2,4.29623]
[1746096549407,15.28789336,1837.3,1837.2,4.29623]
[1746096549608,1.08835,1837.4,1837.3,1.08839]
[1746096549907,11.59028336,1837.3,1837.2,4.29621]
[1746096550109,11.59028336,1837.3,1837.2,3.2078]
[1746096550302,1.0885,1837.1,1837.0,4.29634]
[1746096550607,10.50189336,1837.1,1837.0,1.08854]
[1746096550798,1.0885,1837.1,1837.0,1.08854]
[1746096551002,8.49399,1837.2,1837.1,1.0885]
[1746096551201,18.99583336,1837.2,1837.1,1.0885]
[1746096551902,18.99583336,1837.2,1837.1,3.4839]
[1746096552905,3.60504,1837.2,1837.1,3.4839]
[1746096553110,1.08841,1837.3,1837.2,1.08844]
[1746096553411,1.08841,1837.3,1837.2,3.56484]
[1746096553603,11.59030336,1837.3,1837.2,6.03284]
[1746096554311,14.79810336,1837.3,1837.2,6.03284]
[1746096554705,3.59021,1837.3,1837.2,6.03284]
[1746096554909,14.09210336,1837.3,1837.2,6.03284]
[1746096555112,14.09210336,1837.3,1837.2,2.4764]
[1746096555411,13.00369336,1837.3,1837.0,3.55652]
[1746096555609,1.0885,1837.1,1837.0,3.55652]
[1746096555814,10.50189336,1837.2,1837.1,1.0885]
[1746096556106,1.08844,1837.3,1837.1,1.0885]
[1746096556107,1.08844,1837.3,1837.2,1.08844]
[1746096556300,3.51844,1837.3,1837.2,1.08844]
[1746096556501,2.72112,1837.2,1836.5,4.29664]
[1746096556705,1.08886,1836.5,1836.4,11.68561613]
[1746096556901,11.59075336,1836.5,1836.4,9.36371613]
[1746096557109,1.08886,1836.5,1836.4,9.36371613]
[1746096557401,10.5264,1836.7,1836.6,1.0888]
[1746096557605,10.5264,1836.7,1836.4,9.36371613]
[1746096557606,11.61514,1836.7,1836.5,3.41071]
[1746096557807,1.0888,1836.6,1836.5,2.2498]
[1746096558002,14.02069336,1836.6,1836.5,2.2498]
[1746096558813,1.08886,1836.5,1836.4,8.20279613]
[1746096559012,14.02075336,1836.5,1836.4,10.45259613]
[1746096559209,3.51886,1836.5,1836.4,10.45259613]
[1746096559516,3.51886,1836.5,1836.4,3.33868]
[1746096559713,1.08892,1836.4,1836.3,3.2078]
[1746096559914,15.35349336,1836.4,1836.1,4.8187]
[1746096560215,16.44245336,1836.4,1836.3,1.08898]
[1746096560418,1.0889,1836.5,1836.4,1.08891]
[1746096560615,11.59075336,1836.5,1836.4,1.08892]
[1746096560802,1.08886,1836.5,1836.4,1.08892]
[1746096561009,1.08892,1836.4,1836.3,1.08893]
[1746096561209,4.8516,1836.4,1836.3,1.08893]
[1746096561515,5.94052,1836.4,1836.3,1.08893]
[1746096561715,1.08884,1836.6,1836.2,2.3905]
[1746096561914,11.59079336,1836.5,1836.3,1.08894]
[1746096562120,11.59079336,1836.5,1836.4,2.3292]
[1746096562315,1.0889,1836.5,1836.4,2.3292]
[1746096562515,3.3742,1836.5,1836.4,44.21812]
[1746096562714,2.2853,1836.5,1836.4,44.21812]
[1746096563117,3.37416,1836.5,1836.4,44.21812]
[1746096563418,2.2853,1836.5,1836.4,44.21812]
[1746096563721,3.47514,1836.6,1836.5,1.08886]
[1746096563908,5.76044,1836.6,1836.5,4.6543]
[1746096564110,1.08886,1836.5,1836.4,40.8]
[1746096564417,13.87605336,1836.5,1836.4,40.8]
[1746096564720,3.37416,1836.5,1836.3,1.08893]
[1746096565015,2.2853,1836.5,1836.4,3.41812]
[1746096565224,3.37416,1836.5,1836.4,3.41812]
[1746096566022,3.37416,1836.5,1836.4,2.3292]
[1746096566620,13.87605336,1836.5,1836.4,2.3292]
[1746096567020,17.08385336,1836.5,1836.4,2.3292]
[1746096567319,1.08892,1836.4,1836.3,41.88894]
[1746096567512,3.43802,1836.4,1836.3,44.21564]
[1746096568421,3.43802,1836.4,1836.3,43.1267]
[1746096568825,1.0889,1836.5,1836.4,1.08892]
[1746096569021,11.59079336,1836.5,1836.4,3.56902]
[1746096569221,11.59079336,1836.5,1836.4,2.4801]
[1746096569520,13.89079336,1836.5,1836.4,2.4801]
[1746096572121,1.08892,1836.4,1836.3,40.8]
[1746096572324,1.08898,1836.3,1836.2,5.77312]
[1746096572824,1.08898,1836.3,1836.2,46.57312]
[1746096573430,1.08904,1836.2,1836.1,3.2078]
[1746096573615,18.67163336,1836.2,1836.1,3.2078]
[1746096574127,1.08916,1836.0,1835.9,3.2078]
[1746096574321,11.59105336,1836.0,1835.9,3.2078]
[1746096574522,10.50189336,1836.0,1835.7,48.8652]
[1746096574731,11.59116336,1835.8,1835.7,46.3806]
[1746096574926,3.2078,1836.1,1835.7,49.1039]
[1746096575133,1.08914,1836.1,1836.0,1.08911]
[1746096575726,4.584,1836.2,1836.1,1.0891]
[1746096575932,11.59093336,1836.2,1836.1,1.0891]
[1746096576132,1.0891,1836.1,1836.0,5.94652]
[1746096576334,1.0891,1836.1,1836.0,3.57372]
[1746096576530,3.36167,1836.2,1836.1,1.0891]
[1746096576831,13.86356336,1836.2,1836.1,1.0891]
[1746096577635,1.0891,1836.1,1836.0,3.5737]
[1746096578236,1.0891,1836.1,1836.0,1.0891]
[1746096578629,1.08922,1835.9,1835.8,1.08925]
[1746096578829,11.59111336,1835.9,1835.8,1.08925]
[1746096579032,1.08922,1835.9,1835.8,41.88925]
[1746096579736,6.0035,1836.0,1835.9,1.08922]
[1746096580131,16.50539336,1836.0,1835.9,1.08922]
[1746096581431,1.08927,1835.9,1835.8,1.08923]
[1746096581735,15.37179336,1835.9,1835.8,1.08923]
[1746096582030,2.4542,1835.9,1835.8,1.08923]
[1746096582237,3.54342,1835.9,1835.8,1.08923]
[1746096583138,16.46101336,1835.9,1835.8,1.08923]
[1746096583530,1.08933,1835.8,1835.7,1.0893]
[1746096583730,13.99802336,1835.8,1835.7,1.0893]
[1746096583938,3.49613,1835.8,1835.7,41.8893]
[1746096584333,2.4821,1836.0,1835.9,1.08922]
[1746096584637,1.08913,1836.1,1836.0,1.08911]
[1746096584940,11.59102336,1836.1,1836.0,1.08911]
[1746096585239,1.08922,1836.0,1835.9,1.0892]
[1746096585436,13.99791336,1836.0,1835.9,1.0892]
[1746096586235,15.63172336,1836.0,1835.6,3.2078]
[1746096586440,1.08955,1835.4,1835.3,1.08953]
[1746096586630,11.59139336,1835.5,1835.4,1.08951]
[1746096586832,13.82749336,1835.5,1835.4,41.88951]
[1746096587940,2.4056,1835.6,1835.5,1.08945]
[1746096588140,13.99688336,1835.6,1835.5,1.08945]
[1746096588438,16.23298336,1835.6,1835.5,1.08945]
[1746096588942,15.14359336,1835.6,1835.5,1.08945]
[1746096589338,4.6417,1835.6,1835.5,1.08945]
[1746096589539,3.2078,1835.7,1835.6,1.08939]
[1746096589756,13.70969336,1835.7,1835.6,1.08939]
[1746096590338,2.4578,1835.8,1835.7,1.08933]
[1746096590535,6.3539,1835.9,1835.8,1.08927]
[1746096590840,16.85579336,1835.9,1835.8,1.08927]
[1746096591042,17.94501336,1835.9,1835.8,1.08927]
[1746096591539,2.4486,1836.0,1835.9,1.08922]
[1746096591740,12.95049336,1836.0,1835.9,1.08922]
[1746096591936,16.49745336,1836.0,1835.9,1.08922]
[1746096592135,15.40829336,1836.0,1835.9,1.08922]
[1746096592337,5.99556,1836.0,1835.9,5.80612]
[1746096592536,16.49745336,1836.0,1835.9,5.80612]
[1746096592943,6.64083,1836.1,1836.0,1.08916]
[1746096593130,16.25052336,1836.1,1836.0,3.47616]
[1746096593747,1.08916,1836.0,1835.9,1.08917]
[1746096593948,13.90665336,1836.0,1835.9,1.08917]
[1746096594844,13.90665336,1836.0,1835.9,3.47617]
[1746096595049,13.90665336,1836.0,1835.9,1.08917]
[1746096595448,1.08927,1835.9,1835.8,1.08923]
[1746096595748,5.80017,1835.9,1835.8,1.08923]
[1746096595951,16.30206336,1835.9,1835.8,1.08923]
[1746096597156,11.59116336,1835.9,1835.8,1.08923]
[1746096597846,13.94666336,1835.9,1835.8,1.08923]
[1746096599452,1.08927,1835.8,1835.7,6.59458]
[1746096599659,13.95926336,1835.8,1835.7,4.29713]
[1746096600745,13.95926336,1835.8,1835.7,3.2078]
[1746096601249,1.08933,1835.7,1835.6,1.08934]
[1746096601554,18.70332336,1835.7,1835.6,1.08934]
[1746096604855,17.61399336,1835.7,1835.6,1.08934]
[1746096605048,4.29706,1835.9,1835.8,1.08927]
[1746096605251,11.18346,1835.9,1835.8,1.08927]
[1746096605550,20.59609336,1835.9,1835.8,1.08927]
[1746096605756,3.2078,1835.9,1835.8,1.08927]
[1746096606153,11.1833,1836.1,1836.0,1.08916]
[1746096606452,7.9755,1836.1,1836.0,1.08916]
[1746096606846,7.9755,1836.1,1836.0,3.34086]
[1746096607148,5.724,1836.1,1836.0,3.34086]
[1746096607354,6.2615,1836.2,1836.1,1.0891]
[1746096607655,13.84243336,1836.2,1836.1,3.3408]
[1746096607954,12.75339336,1836.2,1836.1,3.3408]
[1746096608258,13.84243336,1836.2,1836.1,3.3408]
[1746096608647,3.988,1836.5,1836.4,1.08892]
[1746096609048,16.87369336,1836.5,1836.4,1.08892]
[1746096609247,16.87369336,1836.5,1836.3,3.38012]
[1746096609558,3.988,1836.5,1836.4,1.08892]
[1746096609751,5.75003,1836.6,1836.5,1.08886]
[1746096610051,16.25192336,1836.6,1836.5,1.08886]
[1746096610241,18.63572336,1836.6,1836.5,1.08886]
[1746096611356,17.54689336,1836.6,1836.5,1.08886]
[1746096611654,1.08878,1836.7,1836.6,1.08875]
[1746096611856,5.74098,1836.7,1836.6,1.08875]
[1746096612044,16.24287336,1836.7,1836.6,3.42665]